fUSD/lending_fUSD_20250513
["ID","MTS","AMOUNT","RATE_DAILY","PERIOD"]
[360936165,1747157446174,-400.0,0.00010958,2]
[360936166,1747157446183,-712.61,0.00010958,2]
[360936168,1747157446193,-400.0,0.00010958,2]
[360936169,1747157446202,-2453.36,0.00010958,2]
[360936170,1747157446212,-400.0,0.00010958,2]
[360936171,1747157446222,-400.0,0.00010958,2]
[360936172,1747157446231,-400.0,0.00010958,2]
[360936173,1747157446241,-587.09,0.00010958,2]
[360936174,1747157446251,-400.0,0.00010958,2]
[360936175,1747157446260,-400.0,0.00010958,2]
[360936176,1747157446270,-1454.44,0.00010958,2]
[360936177,1747157446279,-400.0,0.00010958,2]
[360936178,1747157446289,-669.67,0.00010958,2]
[360936179,1747157446298,-400.0,0.00010958,2]
[360936180,1747157446307,-400.0,0.00010958,2]
[360936181,1747157446317,-400.0,0.00010958,2]
[360936182,1747157446327,-400.0,0.00010958,2]
[360936183,1747157446336,-1813.79,0.00010958,2]
[360936184,1747157446346,-406.32849814,0.00010958,2]
[360936185,1747157446355,-400.0,0.00010958,2]
[360936186,1747157446365,-437.19,0.00010958,2]
[360936187,1747157446374,-400.0,0.00010958,2]
[360936188,1747157446384,-400.0,0.00010958,2]
[360936189,1747157446394,-101310.34,0.00010958,2]
[360936190,1747157446404,-172.16116461,0.00010958,2]
[360936191,1747157446414,-483.53,0.00010958,2]
[360936192,1747157446427,-1387.03,0.00010958,2]
[360936193,1747157446437,-400.0,0.00010958,2]
[360936194,1747157446446,-400.0,0.00010958,2]
[360936195,1747157446455,-400.0,0.00010958,2]
[360936196,1747157446466,-1705.2,0.00010958,2]
[360936197,1747157446475,-400.0,0.00010958,2]
[360936198,1747157446484,-1738.97,0.00010958,2]
[360936199,1747157446494,-400.0,0.00010958,2]
[360936200,1747157446504,-400.0,0.00010958,2]
[360936201,1747157446514,-946.15,0.00010958,2]
[360936202,1747157446523,-2181.62,0.00010958,2]
[360936203,1747157446533,-400.0,0.00010958,2]
[360936204,1747157446543,-400.0,0.00010958,2]
[360936205,1747157446554,-400.0,0.00010958,2]
[360936206,1747157446565,-400.0,0.00010958,2]
[360936207,1747157446575,-400.0,0.00010958,2]
[360936208,1747157446586,-809.14,0.00010958,2]
[360936209,1747157446597,-1176.5,0.00010958,2]
[360936210,1747157446608,-413.28,0.00010958,2]
[360936211,1747157446619,-1495.01,0.00010958,2]
[360936212,1747157446630,-400.0,0.00010958,2]
[360936213,1747157446639,-400.0,0.00010958,2]
[360936215,1747157446649,-255.74533581,0.00010958,2]
[360936217,1747157446658,-1499.71,0.00010958,2]
[360936219,1747157446668,-621.83,0.00010958,2]
[360936221,1747157446677,-404.78,0.00010958,2]
[360936223,1747157446686,-737.3,0.00010958,2]
[360936225,1747157446696,-488.24,0.00010958,2]
[360936227,1747157446705,-2264.96,0.00010958,2]
[360936229,1747157446715,-400.0,0.00010958,2]
[360936231,1747157446724,-291.47573847,0.00010958,2]
[360936233,1747157446734,-459.19,0.00010958,2]
[360936235,1747157446743,-400.0,0.00010958,2]
[360936237,1747157446752,-1120.22,0.00010958,2]
[360936238,1747157446762,-400.0,0.00010958,2]
[360936239,1747157446771,-882.5,0.00010958,2]
[360936240,1747157446781,-3639.32,0.00010958,2]
[360936241,1747157446791,-400.0,0.00010958,2]
[360936242,1747157446801,-497.62,0.00010958,2]
[360936243,1747157446810,-400.0,0.00010958,2]
[360936244,1747157446820,-400.0,0.00010958,2]
[360936245,1747157446831,-400.0,0.00010958,2]
[360936246,1747157446840,-1585.22,0.00010958,2]
[360936247,1747157446850,-400.0,0.00010958,2]
[360936248,1747157446859,-400.0,0.00010958,2]
[360936249,1747157446869,-565.33,0.00010958,2]
[360936250,1747157446878,-1537.25,0.00010958,2]
[360936251,1747157446888,-500.0,0.00010959,2]
[360936252,1747157446897,-500.0,0.00010959,2]
[360936253,1747157446907,-500.0,0.00010959,2]
[360936254,1747157446916,-500.0,0.00010959,2]
[360936255,1747157446926,-500.0,0.00010959,2]
[360936256,1747157446935,-500.0,0.00010959,2]
[360936257,1747157446945,-500.0,0.00010959,2]
[360936258,1747157446956,-500.0,0.00010959,2]
[360936259,1747157446965,-500.0,0.00010959,2]
[360936260,1747157446975,-500.0,0.00010959,2]
[360936261,1747157446984,-200.63,0.00010959,2]
[360936262,1747157446994,-500.0,0.00010959,2]
[360936263,1747157447003,-500.0,0.00010959,2]
[360936264,1747157447013,-500.0,0.00010959,2]
[360936265,1747157447022,-500.0,0.00010959,2]
[360936266,1747157447032,-500.0,0.00010959,2]
[360936267,1747157447041,-500.0,0.00010959,2]
[360936268,1747157447051,-500.0,0.00010959,2]
[360936269,1747157447060,-500.0,0.00010959,2]
[360936270,1747157447069,-150.0,0.00010959,2]
[360936272,1747157447316,-250.0,0.00010965,2]
[360936274,1747157447328,-200.0,0.00010965,2]
[360936276,1747157447337,-420.0,0.00010965,2]
[360936278,1747157447346,-1680.0,0.00010965,2]
[360936280,1747157447356,-150.0,0.00010969,2]
[360936282,1747157447365,-500.0,0.00010973,2]
[360936284,1747157447375,-167.8533398,0.00010973,2]
[360936286,1747157447384,-500.0,0.00010973,2]
[360936288,1747157447393,-500.69101784,0.00010973,2]
[360936290,1747157447403,-500.0,0.00010973,2]
[360936292,1747157447412,-500.0,0.00010973,2]
[360936294,1747157447424,-612.64823099,0.00010973,2]
[360936296,1747157447434,-273.34308396,0.00010986,2]
[360936298,1747157447443,-246.31044732,0.0001099,2]
[360936300,1747157447453,-3820.999,0.0001099,2]
[360936302,1747157447463,-187.123,0.0001099,2]
[360936304,1747157447472,-9282.9144457,0.00010992,2]
[360936306,1747157447482,-11858.5511621,0.00010992,2]
[360936308,1747157447491,-14434.1878786,0.00010992,2]
[360936310,1747157447502,-4881.1484342,0.00010994,2]
[360936312,1747157447512,-13716.0447044,0.00010994,2]
[360936314,1747157447521,-116638.524743,0.00010994,2]
[360936316,1747157447531,-300.0,0.00010999,2]
[360936318,1747157447541,-300.0,0.00010999,2]
[360936320,1747157447550,-300.0,0.00010999,2]
[360936322,1747157447560,-300.0,0.00010999,2]
[360936324,1747157447569,-630.0,0.00010999,2]
[360936326,1747157447582,-477.74631613,0.00011,2]
[360936328,1747157447592,-841661.62637321,0.00011,2]
[360936330,1747157447602,-3803756.2066379,0.00011,2]
[360936339,1747157447675,-9533.75649422,0.00011,2]
[360936413,1747157448395,-27403.98157723,0.00011,2]
[360936471,1747157448982,-400.0,0.00010958,2]
[360936473,1747157448993,-617.83003207,0.00011,2]
[360936476,1747157449014,-666811.49541696,0.00011,2]
[360936478,1747157449026,-616.6560036,0.00011,2]
[360936483,1747157449064,-154.377,0.00010996,2]
[360936485,1747157449073,-596.62470729,0.00011,2]
[360936487,1747157449084,-497.6,0.00011,2]
[360936489,1747157449096,-2881.21152599,0.00011,2]
[360936527,1747157449469,-500.0,0.00010958,2]
[360936529,1747157449480,-500.0,0.00010958,2]
[360936531,1747157449490,-384.99049141,0.00010993,2]
[360936535,1747157449520,-400.0,0.00010958,2]
[360936537,1747157449529,-115.00950859,0.00010993,2]
[360936539,1747157449539,-500.0,0.00010999,2]
[360936541,1747157449548,-221.11677819,0.00010999,2]
[360936543,1747157449557,-428.67546912,0.00011,2]
[360936545,1747157449569,-4450.59175339,0.00011,2]
[360936549,1747157449589,-5292.51,0.00010958,2]
[360936559,1747157449680,-486521.50482797,0.00011,2]
[360936596,1747157453595,-58493.79932943,0.00011,2]
[360936597,1747157785077,1516.48,8.219e-05,2]
[360936598,1747157967135,1000.0,9.893e-05,2]
[360936599,1747157996801,300.38,9.893e-05,2]
[360936600,1747158012942,832.12017,9.889e-05,2]
[360936601,1747158048338,161.43,9.858e-05,2]
[360936602,1747158108080,200.0,9.811e-05,2]
[360936603,1747158260349,-270.5876,9.915e-05,2]
[360936604,1747158260380,-250.0,9.927e-05,2]
[360936605,1747158260411,-327.32,9.939e-05,2]
[360936606,1747158260442,-300.0,9.961e-05,2]
[360936607,1747158260472,-729.15324426,9.962e-05,2]
[360936608,1747158260510,-500.0,9.962e-05,2]
[360936609,1747158260540,-303.0345973,9.962e-05,2]
[360936610,1747158260578,-500.0,9.962e-05,2]
[360936611,1747158260617,-500.0,9.962e-05,2]
[360936612,1747158260654,-500.0,9.962e-05,2]
[360936613,1747158260695,-500.0,9.962e-05,2]
[360936614,1747158260734,-500.0,9.962e-05,2]
[360936615,1747158260771,-500.0,9.962e-05,2]
[360936616,1747158260793,-270.5876,9.962e-05,2]
[360936617,1747158260804,-229.4124,9.962e-05,2]
[360936618,1747158260814,-20.5876,9.962e-05,2]
[360936619,1747158260834,-327.32,9.962e-05,2]
[360936620,1747158260850,-152.0924,9.962e-05,2]
[360936621,1747158260859,-147.9076,9.962e-05,2]
[360936622,1747158260874,-352.0924,9.962e-05,2]
[360936623,1747158260883,-377.06084426,9.962e-05,2]
[360936624,1747158260901,-122.93915574,9.962e-05,2]
[360936625,1747158260910,-377.06084426,9.962e-05,2]
[360936626,1747158260951,-122.93915574,9.962e-05,2]
[360936627,1747158260960,-180.09544156,9.962e-05,2]
[360936628,1747158260971,-319.90455844,9.962e-05,2]
[360936629,1747158260980,-180.09544156,9.962e-05,2]
[360936630,1747158260995,-319.90455844,9.962e-05,2]
[360936631,1747158261004,-180.09544156,9.962e-05,2]
[360936632,1747158261015,-319.90455844,9.962e-05,2]
[360936633,1747158261024,-180.09544156,9.962e-05,2]
[360936634,1747158261048,-319.90455844,9.962e-05,2]
[360936635,1747158261058,-180.09544156,9.962e-05,2]
[360936636,1747158261079,-319.90455844,9.962e-05,2]
[360936637,1747158261088,-180.09544156,9.962e-05,2]
[360936638,1747158261123,-319.90455844,9.962e-05,2]
[360936639,1747158261132,-180.09544156,9.962e-05,2]
[360936640,1747158261218,-319.90455844,9.962e-05,2]
[360936641,1747158261227,-56.90455844,9.962e-05,2]
[360936642,1747158299708,-443.09544156,9.962e-05,2]
[360936643,1747158299745,-500.0,9.962e-05,2]
[360936644,1747158299781,-500.0,9.962e-05,2]
[360936645,1747158299815,-500.0,9.962e-05,2]
[360936646,1747158299855,-500.0,9.962e-05,2]
[360936647,1747158299892,-500.0,9.962e-05,2]
[360936648,1747158299928,-500.0,9.962e-05,2]
[360936649,1747158299963,-500.0,9.962e-05,2]
[360936650,1747158300001,-500.0,9.962e-05,2]
[360936651,1747158300530,-500.0,9.962e-05,2]
[360936652,1747158300570,-500.0,9.962e-05,2]
[360936653,1747158300611,-230.80911688,9.962e-05,2]
[360936654,1747158300625,-269.19088312,9.962e-05,2]
[360936655,1747158300635,-173.90455844,9.962e-05,2]
[360936656,1747158300662,-326.09544156,9.962e-05,2]
[360936657,1747158300672,-173.90455844,9.962e-05,2]
[360936658,1747158300692,-326.09544156,9.962e-05,2]
[360936659,1747158300702,-173.90455844,9.962e-05,2]
[360936660,1747158300729,-326.09544156,9.962e-05,2]
[360936661,1747158300739,-173.90455844,9.962e-05,2]
[360936662,1747158300751,-326.09544156,9.962e-05,2]
[360936663,1747158300762,-173.90455844,9.962e-05,2]
[360936664,1747158300787,-326.09544156,9.962e-05,2]
[360936665,1747158300796,-173.90455844,9.962e-05,2]
[360936666,1747158300814,-326.09544156,9.962e-05,2]
[360936667,1747158300824,-173.90455844,9.962e-05,2]
[360936668,1747158300835,-326.09544156,9.962e-05,2]
[360936669,1747158300845,-173.90455844,9.962e-05,2]
[360936670,1747158300870,-326.09544156,9.962e-05,2]
[360936671,1747158300880,-173.90455844,9.962e-05,2]
[360936672,1747158300902,-326.09544156,9.962e-05,2]
[360936673,1747158300911,-173.90455844,9.962e-05,2]
[360936674,1747158301124,-326.09544156,9.962e-05,2]
[360936675,1747158301134,-173.90455844,9.962e-05,2]
[360936676,1747158301145,-326.09544156,9.962e-05,2]
[360936677,1747158301154,-173.90455844,9.962e-05,2]
[360936678,1747158343292,150.0,9.888e-05,2]
[360936695,1747158581602,1459.58,9.788e-05,2]
[360936700,1747158631469,-300.0,9.915e-05,2]
[360936701,1747158631478,-1200.0,9.915e-05,2]
[360936702,1747158631488,-300.0,9.915e-05,2]
[360936703,1747158631497,-972.14632371,9.916e-05,2]
[360936704,1747158631507,-972.14632371,9.916e-05,2]
[360936705,1747158631517,-972.14632371,9.916e-05,2]
[360936706,1747158631527,-972.14632371,9.916e-05,2]
[360936707,1747158631537,-972.14632371,9.916e-05,2]
[360936708,1747158631546,-972.14632371,9.916e-05,2]
[360936709,1747158631557,-972.14632371,9.916e-05,2]
[360936710,1747158631567,-972.14632371,9.916e-05,2]
[360936711,1747158631578,-972.14632371,9.916e-05,2]
[360936712,1747158631587,-972.14632371,9.916e-05,2]
[360936713,1747158631596,-972.14632371,9.916e-05,2]
[360936714,1747158631606,-972.14632371,9.916e-05,2]
[360936715,1747158631617,-972.14632371,9.916e-05,2]
[360936716,1747158631627,-972.14632371,9.916e-05,2]
[360936717,1747158631636,-972.14632371,9.916e-05,2]
[360936718,1747158631646,-972.14632371,9.916e-05,2]
[360936719,1747158631655,-972.14632371,9.916e-05,2]
[360936720,1747158631664,-972.14632371,9.916e-05,2]
[360936721,1747158631674,-972.14632371,9.916e-05,2]
[360936722,1747158631684,-972.14632371,9.916e-05,2]
[360936723,1747158631694,-972.14632371,9.916e-05,2]
[360936724,1747158631703,-972.14632371,9.916e-05,2]
[360936725,1747158631713,-972.14632371,9.916e-05,2]
[360936726,1747158631722,-972.14632371,9.916e-05,2]
[360936727,1747158631732,-972.14632371,9.916e-05,2]
[360936728,1747158631741,-972.14632371,9.916e-05,2]
[360936729,1747158631750,-972.14632371,9.916e-05,2]
[360936730,1747158631759,-972.14632371,9.916e-05,2]
[360936731,1747158631769,-972.14632371,9.916e-05,2]
[360936732,1747158631778,-972.14632371,9.916e-05,2]
[360936733,1747158631790,-972.14632371,9.916e-05,2]
[360936734,1747158631801,-972.14632371,9.916e-05,2]
[360936735,1747158631811,-972.14632371,9.916e-05,2]
[360936736,1747158631820,-972.14632371,9.916e-05,2]
[360936737,1747158631830,-972.14632371,9.916e-05,2]
[360936738,1747158631840,-972.14632371,9.916e-05,2]
[360936739,1747158631850,-972.14632371,9.916e-05,2]
[360936740,1747158631860,-972.14632371,9.916e-05,2]
[360936741,1747158631871,-972.14632371,9.916e-05,2]
[360936742,1747158631881,-972.14632371,9.916e-05,2]
[360936743,1747158631891,-972.14632371,9.916e-05,2]
[360936744,1747158631900,-972.14632371,9.916e-05,2]
[360936745,1747158631910,-972.14632371,9.916e-05,2]
[360936746,1747158631920,-972.14632371,9.916e-05,2]
[360936747,1747158631929,-972.14632371,9.916e-05,2]
[360936748,1747158631938,-972.14632371,9.916e-05,2]
[360936750,1747158631947,-972.14632371,9.916e-05,2]
[360936751,1747158631957,-972.14632371,9.916e-05,2]
[360936752,1747158631967,-973.94659468,9.916e-05,2]
[360936753,1747158631975,-292.72675089,9.916e-05,2]
[360936754,1747158631989,-681.21984379,9.916e-05,2]
[360936755,1747158631998,-973.94659468,9.916e-05,2]
[360936756,1747158632008,-973.94659468,9.916e-05,2]
[360936757,1747158632018,-973.94659468,9.916e-05,2]
[360936758,1747158632027,-973.94659468,9.916e-05,2]
[360936759,1747158632036,-973.94659468,9.916e-05,2]
[360936760,1747158632045,-973.94659468,9.916e-05,2]
[360936761,1747158632054,-973.94659468,9.916e-05,2]
[360936762,1747158632065,-973.94659468,9.916e-05,2]
[360936763,1747158632075,-973.94659468,9.916e-05,2]
[360936764,1747158632085,-973.94659468,9.916e-05,2]
[360936765,1747158632094,-973.94659468,9.916e-05,2]
[360936766,1747158632103,-973.94659468,9.916e-05,2]
[360936767,1747158632115,-973.94659468,9.916e-05,2]
[360936768,1747158632124,-973.94659468,9.916e-05,2]
[360936769,1747158632133,-973.94659468,9.916e-05,2]
[360936770,1747158632143,-973.94659468,9.916e-05,2]
[360936771,1747158632152,-973.94659468,9.916e-05,2]
[360936772,1747158632163,-973.94659468,9.916e-05,2]
[360936773,1747158632172,-973.94659468,9.916e-05,2]
[360936774,1747158632181,-973.94659468,9.916e-05,2]
[360936775,1747158632191,-973.94659468,9.916e-05,2]
[360936776,1747158632200,-973.94659468,9.916e-05,2]
[360936777,1747158632210,-973.94659468,9.916e-05,2]
[360936778,1747158632219,-973.94659468,9.916e-05,2]
[360936779,1747158632230,-973.94659468,9.916e-05,2]
[360936780,1747158632239,-973.94659468,9.916e-05,2]
[360936781,1747158632248,-973.94659468,9.916e-05,2]
[360936782,1747158632258,-973.94659468,9.916e-05,2]
[360936783,1747158632267,-973.94659468,9.916e-05,2]
[360936784,1747158632278,-973.94659468,9.916e-05,2]
[360936786,1747158632287,-973.94659469,9.916e-05,2]
[360936788,1747158632297,-973.94659469,9.916e-05,2]
[360936790,1747158632306,-973.94659469,9.916e-05,2]
[360936792,1747158632315,-973.94659469,9.916e-05,2]
[360936794,1747158632325,-973.94659469,9.916e-05,2]
[360936796,1747158632334,-973.94659469,9.916e-05,2]
[360936798,1747158632343,-1327.11,9.917e-05,2]
[360936800,1747158632353,-751.27,9.942e-05,2]
[360936802,1747158632364,-996.59233437,9.961e-05,2]
[360936804,1747158632376,-98.28015586,9.961e-05,2]
[360936806,1747158632385,-1094.87249023,9.961e-05,2]
[360936808,1747158632395,-1094.87249023,9.961e-05,2]
[360936810,1747158632404,-250.0,9.962e-05,2]
[360936812,1747158632414,-1608.4771,9.965e-05,2]
[360936814,1747158632424,-571.29,0.00010016,2]
[360936816,1747158632434,-150.0,0.00010062,2]
[360936818,1747158632444,-190.3805566,0.00010062,2]
[360936820,1747158632453,-181.45898956,0.00010062,2]
[360936823,1747158632462,-2064.79,0.00010063,2]
[360936825,1747158632472,-854.27,0.00010063,2]
[360936827,1747158632481,-17877.2,0.00010063,2]
[360936829,1747158632490,-29999.99,0.00010063,2]
[360936830,1747158632499,-5904.92134405,0.00010063,2]
[360936833,1747158632510,-24095.06865595,0.00010063,2]
[360936835,1747158632518,-23900.0,0.00010065,2]
[360936837,1747158632527,-326.29640825,0.00010118,2]
[360936838,1747158632537,-890.3,0.00010175,2]
[360936839,1747158632546,-166.66,0.00010184,2]
[360936840,1747158632555,-207.4,0.00010382,2]
[360936841,1747158632565,-1516.48,0.00010477,2]
[360936842,1747158632574,-696.77,0.000105,2]
[360936843,1747158632583,-1156.61,0.00010578,2]
[360936844,1747158632592,-583.5168195,0.00010758,2]
[360936845,1747158632602,-1176.6072,0.00010858,2]
[360936846,1747158632611,-1000.0,0.00010858,2]
[360936847,1747158632621,-9979.193,0.00010858,2]
[360936848,1747158632630,-529.8824,0.00010858,2]
[360936849,1747158632639,-2500.0,0.00010858,2]
[360936850,1747158632649,-20630.61,0.00010858,2]
[360936851,1747158632659,-485.4456,0.00010858,2]
[360936852,1747158632668,-171.04165752,0.000109,2]
[360936853,1747158632678,-420.0,0.00010906,2]
[360936854,1747158632687,-1680.0,0.00010906,2]
[360936855,1747158632696,-300.0,0.00010906,2]
[360936856,1747158632706,-250.0,0.00010906,2]
[360936857,1747158632715,-250.0,0.00010908,2]
[360936858,1747158632725,-250.0,0.00010933,2]
[360936859,1747158632734,-667.6620321,0.00010944,2]
[360936860,1747158632743,-151.0,0.00010951,2]
[360936861,1747158632752,-287.61899177,0.00010951,2]
[360936862,1747158632761,-668.65185757,0.00010951,2]
[360936863,1747158632770,-400.0,0.00010958,2]
[360936864,1747158632780,-820.45,0.00010958,2]
[360936865,1747158632791,-156.58359271,0.00010958,2]
[360936866,1747158632803,-400.0,0.00010958,2]
[360936867,1747158632812,-400.0,0.00010958,2]
[360936868,1747158632821,-400.0,0.00010958,2]
[360936869,1747158632830,-492.31958922,0.00010958,2]
[360936870,1747158632840,-400.0,0.00010958,2]
[360936871,1747158632850,-400.0,0.00010958,2]
[360936872,1747158632859,-400.0,0.00010958,2]
[360936873,1747158632868,-400.0,0.00010958,2]
[360936874,1747158632878,-400.0,0.00010958,2]
[360936875,1747158632887,-410.45701531,0.00010958,2]
[360936876,1747158632897,-400.0,0.00010958,2]
[360936877,1747158632906,-400.0,0.00010958,2]
[360936878,1747158632916,-789.49,0.00010958,2]
[360936880,1747158632925,-400.0,0.00010958,2]
[360936882,1747158632935,-165.41546948,0.00010958,2]
[360936884,1747158632944,-400.0,0.00010958,2]
[360936886,1747158632953,-400.0,0.00010958,2]
[360936888,1747158632963,-400.0,0.00010958,2]
[360936890,1747158632972,-400.0,0.00010958,2]
[360936892,1747158632981,-400.0,0.00010958,2]
[360936894,1747158632991,-400.0,0.00010958,2]
[360936896,1747158633000,-400.0,0.00010958,2]
[360936898,1747158633009,-400.0,0.00010958,2]
[360936900,1747158633019,-400.0,0.00010958,2]
[360936902,1747158633029,-400.0,0.00010958,2]
[360936904,1747158633040,-699.06,0.00010958,2]
[360936906,1747158633050,-400.0,0.00010958,2]
[360936908,1747158633061,-710.2,0.00010958,2]
[360936910,1747158633071,-400.0,0.00010958,2]
[360936912,1747158633081,-400.0,0.00010958,2]
[360936914,1747158633091,-400.0,0.00010958,2]
[360936916,1747158633100,-400.0,0.00010958,2]
[360936918,1747158633111,-400.0,0.00010958,2]
[360936920,1747158633121,-400.0,0.00010958,2]
[360936922,1747158633130,-400.0,0.00010958,2]
[360936924,1747158633140,-400.0,0.00010958,2]
[360936925,1747158633150,-400.0,0.00010958,2]
[360936926,1747158633160,-445.61,0.00010958,2]
[360936927,1747158633169,-400.0,0.00010958,2]
[360936928,1747158633178,-562.06,0.00010958,2]
[360936929,1747158633187,-488.54,0.00010958,2]
[360936930,1747158633196,-400.0,0.00010958,2]
[360936931,1747158633205,-400.0,0.00010958,2]
[360936932,1747158633214,-400.0,0.00010958,2]
[360936933,1747158633224,-400.0,0.00010958,2]
[360936934,1747158633234,-400.0,0.00010958,2]
[360936935,1747158633245,-3820.999,0.00010958,2]
[360936936,1747158633254,-187.123,0.00010958,2]
[360936937,1747158633263,-400.0,0.00010958,2]
[360936938,1747158633273,-400.0,0.00010958,2]
[360936939,1747158633282,-400.0,0.00010958,2]
[360936940,1747158633292,-400.0,0.00010958,2]
[360936941,1747158633302,-400.0,0.00010958,2]
[360936942,1747158633311,-400.0,0.00010958,2]
[360936943,1747158633321,-474.49827375,0.00010958,2]
[360936944,1747158633331,-400.0,0.00010958,2]
[360936945,1747158633340,-400.0,0.00010958,2]
[360936946,1747158633350,-360.68006057,0.00010958,2]
[360936947,1747158633361,-467.65,0.00010958,2]
[360936948,1747158633370,-609.42,0.00010958,2]
[360936949,1747158633380,-400.0,0.00010958,2]
[360936950,1747158633390,-400.0,0.00010958,2]
[360936951,1747158633400,-956.8,0.00010958,2]
[360936952,1747158633410,-400.0,0.00010958,2]
[360936953,1747158633420,-400.0,0.00010958,2]
[360936954,1747158633430,-528.43,0.00010958,2]
[360936955,1747158633440,-466.46,0.00010958,2]
[360936956,1747158633450,-401.34988939,0.00010958,2]
[360936957,1747158633460,-724.99,0.00010958,2]
[360936958,1747158633470,-543.42,0.00010958,2]
[360936959,1747158633480,-400.0,0.00010958,2]
[360936960,1747158633490,-1086.52,0.00010958,2]
[360936961,1747158633501,-667.76,0.00010958,2]
[360936962,1747158633511,-400.0,0.00010958,2]
[360936963,1747158633521,-736.93,0.00010958,2]
[360936964,1747158633531,-400.0,0.00010958,2]
[360936965,1747158633542,-400.0,0.00010958,2]
[360936966,1747158633552,-445.89583694,0.00010958,2]
[360936967,1747158633562,-400.0,0.00010958,2]
[360936968,1747158633572,-400.0,0.00010958,2]
[360936969,1747158633582,-1813.79,0.00010958,2]
[360936970,1747158633593,-2041.56,0.00010958,2]
[360936971,1747158633604,-400.0,0.00010958,2]
[360936972,1747158633615,-400.0,0.00010958,2]
[360936973,1747158633626,-400.0,0.00010958,2]
[360936974,1747158633636,-653.68,0.00010958,2]
[360936975,1747158633647,-400.0,0.00010958,2]
[360936976,1747158633657,-400.0,0.00010958,2]
[360936977,1747158633667,-400.0,0.00010958,2]
[360936978,1747158633677,-400.0,0.00010958,2]
[360936979,1747158633687,-3639.32,0.00010958,2]
[360936980,1747158633697,-1499.71,0.00010958,2]
[360936981,1747158633707,-400.0,0.00010958,2]
[360936982,1747158633718,-400.0,0.00010958,2]
[360936983,1747158633728,-400.0,0.00010958,2]
[360936984,1747158633738,-497.62,0.00010958,2]
[360936985,1747158633748,-400.0,0.00010958,2]
[360936986,1747158633758,-400.0,0.00010958,2]
[360936987,1747158633767,-1328.37,0.00010958,2]
[360936988,1747158633777,-400.0,0.00010958,2]
[360936989,1747158633789,-400.0,0.00010958,2]
[360936990,1747158633799,-822.51,0.00010958,2]
[360936991,1747158633809,-400.0,0.00010958,2]
[360936992,1747158633820,-640.52,0.00010958,2]
[360936993,1747158633830,-653.33,0.00010958,2]
[360936994,1747158633840,-228.44428556,0.00010958,2]
[360936995,1747158633852,-483.49,0.00010958,2]
[360936996,1747158633863,-509.48,0.00010958,2]
[360936997,1747158633875,-400.0,0.00010958,2]
[360936998,1747158633886,-400.0,0.00010958,2]
[360936999,1747158633896,-400.0,0.00010958,2]
[360937000,1747158633907,-680.93,0.00010958,2]
[360937001,1747158633917,-400.0,0.00010958,2]
[360937002,1747158633926,-400.0,0.00010958,2]
[360937003,1747158633936,-432.39,0.00010958,2]
[360937004,1747158633946,-400.0,0.00010958,2]
[360937005,1747158633956,-400.0,0.00010958,2]
[360937006,1747158633965,-400.0,0.00010958,2]
[360937007,1747158633975,-400.0,0.00010958,2]
[360937008,1747158633986,-400.0,0.00010958,2]
[360937009,1747158633996,-469.54,0.00010958,2]
[360937010,1747158634007,-400.0,0.00010958,2]
[360937011,1747158634018,-400.0,0.00010958,2]
[360937012,1747158634028,-1418.7,0.00010958,2]
[360937013,1747158634038,-400.0,0.00010958,2]
[360937014,1747158634047,-400.0,0.00010958,2]
[360937015,1747158634057,-400.0,0.00010958,2]
[360937016,1747158634067,-400.0,0.00010958,2]
[360937017,1747158634076,-400.0,0.00010958,2]
[360937018,1747158634086,-400.0,0.00010958,2]
[360937019,1747158634096,-400.0,0.00010958,2]
[360937020,1747158634106,-400.0,0.00010958,2]
[360937021,1747158634118,-493.37,0.00010958,2]
[360937022,1747158634128,-685.92,0.00010958,2]